Workbook

Sheet Sheet1
B1: population A | C1: population B | D1: accuracy_AB | E1: AUC_AB | F1: accuracy_A | G1: AUC_A | H1: accuracy_B | I1: AUC_B | J1: acc A – acc B | K1: AUC A – AUC B
A2: 0 | B2: Pseudomonas putida | C2: Burkholderia ambifaria | D2: 0.8486666667 | E2: 0.9082520309 | F2: 0.595 | G2: 0.6327744868 | H2: 0.8823333333 | I2: 0.9374673219 | J2: =F2-H2 -> -0.2873333333 | K2: =G2-I2 -> -0.3046928351
A3: 1 | B3: Pseudomonas putida | C3: Shewanella oneidensis | D3: 0.8903333333 | E3: 0.957033473 | F3: 0.8133333333 | G3: 0.8831708471 | H3: 0.9153333333 | I3: 0.9702402971 | J3: =F3-H3 -> -0.102 | K3: =G3-I3 -> -0.08706945
A4: 2 | B4: Pseudomonas putida | C4: Cupriavidus necator | D4: 0.8566666667 | E4: 0.929064394 | F4: 0.8 | G4: 0.866971647 | H4: 0.8403333333 | I4: 0.9107142222 | J4: =F4-H4 -> -0.0403333333 | K4: =G4-I4 -> -0.0437425752
A5: 3 | B5: Pseudomonas putida | C5: Cupriavidus pinatubonensis | D5: 0.7313333333 | E5: 0.8017813763 | F5: 0.894 | G5: 0.9567562653 | H5: 0.7436666667 | I5: 0.820176008 | J5: =F5-H5 -> 0.1503333333 | K5: =G5-I5 -> 0.1365802573
A6: 4 | B6: Pseudomonas putida | C6: Zymomonas mobilis subsp. mobilis | D6: 0.911 | E6: 0.9697919186 | F6: 0.935 | G6: 0.9805365514 | H6: 0.9163333333 | I6: 0.9722180973 | J6: =F6-H6 -> 0.0186666667 | K6: =G6-I6 -> 0.0083184541
A7: 5 | B7: Pseudomonas putida | C7: Sphingomonas aromaticivorans | D7: 0.9276666667 | E7: 0.9790340279 | F7: 0.8416666667 | G7: 0.9234733347 | H7: 0.9253333333 | I7: 0.9812110086 | J7: =F7-H7 -> -0.0836666666 | K7: =G7-I7 -> -0.0577376739
A8: 6 | B8: Pseudomonas putida | C8: Rhizobium radiobacter | D8: 0.8453333333 | E8: 0.9118772941 | F8: 0.8596666667 | G8: 0.9374597638 | H8: 0.8303333333 | I8: 0.9005184473 | J8: =F8-H8 -> 0.0293333334 | K8: =G8-I8 -> 0.0369413165
A9: 7 | B9: Pseudomonas putida | C9: Pseudomonas fluorescens | D9: 0.7476666667 | E9: 0.8266138068 | F9: 0.6993333333 | G9: 0.7740630513 | H9: 0.7373333333 | I9: 0.8160221162 | J9: =F9-H9 -> -0.038 | K9: =G9-I9 -> -0.0419590649
A10: 8 | B10: Pseudomonas putida | C10: Lactobacillus plantarum | D10: 0.8773333333 | E10: 0.9497751661 | F10: 0.7796666667 | G10: 0.8543759248 | H10: 0.873 | I10: 0.9494052594 | J10: =F10-H10 -> -0.0933333333 | K10: =G10-I10 -> -0.0950293346
A11: 9 | B11: Pseudomonas putida | C11: Streptococcus salivarius | D11: 0.944 | E11: 0.9832048145 | F11: 0.936 | G11: 0.9814719885 | H11: 0.934 | I11: 0.9796013366 | J11: =F11-H11 -> 0.002 | K11: =G11-I11 -> 0.0018706519
A12: 10 | B12: Pseudomonas putida | C12: Bacillus subtilis | D12: 0.879 | E12: 0.9490413549 | F12: 0.9353333333 | G12: 0.9808371006 | H12: 0.8706666667 | I12: 0.9433518168 | J12: =F12-H12 -> 0.0646666666 | K12: =G12-I12 -> 0.0374852838
A13: 11 | B13: Pseudomonas putida | C13: Agrobacter rhizogenes | D13: 0.8153333333 | E13: 0.8875886087 | F13: 0.9296666667 | G13: 0.9858199479 | H13: 0.8196666667 | I13: 0.8841734186 | J13: =F13-H13 -> 0.11 | K13: =G13-I13 -> 0.1016465293
A14: 12 | B14: Pseudomonas putida | C14: Micrococcus luteus | D14: 0.957 | E14: 0.9880707322 | F14: 0.942 | G14: 0.9881325315 | H14: 0.953 | I14: 0.9889750473 | J14: =F14-H14 -> -0.011 | K14: =G14-I14 -> -0.0008425158
A15: 13 | B15: Pseudomonas putida | C15: Citrobacter freundii | D15: 0.8383333333 | E15: 0.9117994892 | F15: 0.8563333333 | G15: 0.9253642158 | H15: 0.8533333333 | I15: 0.925860611 | J15: =F15-H15 -> 0.003 | K15: =G15-I15 -> -0.0004963952
A16: 14 | B16: Pseudomonas putida | C16: Enterobacter aerogenes | D16: 0.821 | E16: 0.8901964062 | F16: 0.8716666667 | G16: 0.9284306176 | H16: 0.843 | I16: 0.9171604684 | J16: =F16-H16 -> 0.0286666667 | K16: =G16-I16 -> 0.0112701492
A17: 15 | B17: Pseudomonas putida | C17: Escherichia coli | D17: 0.7483333333 | E17: 0.8112088835 | F17: 0.7626666667 | G17: 0.845599311 | H17: 0.741 | I17: 0.8193977368 | J17: =F17-H17 -> 0.0216666667 | K17: =G17-I17 -> 0.0262015742
A18: 16 | B18: Pseudomonas putida | C18: Edwardsialla ictaluri | D18: 0.8496666667 | E18: 0.9137483906 | F18: 0.7873333333 | G18: 0.858165912 | H18: 0.8703333333 | I18: 0.9335833019 | J18: =F18-H18 -> -0.083 | K18: =G18-I18 -> -0.0754173899
A19: 17 | B19: Pseudomonas putida | C19: Klebsiella oxytoca | D19: 0.828 | E19: 0.9041897266 | F19: 0.8716666667 | G19: 0.9476208599 | H19: 0.8723333333 | I19: 0.939596286 | J19: =F19-H19 -> -0.0006666666 | K19: =G19-I19 -> 0.0080245739
A20: 18 | B20: Pseudomonas putida | C20: Janthinobacterium sp. strain B3 | D20: 0.7606666667 | E20: 0.84191336 | F20: 0.8986666667 | G20: 0.9619927566 | H20: 0.761 | I20: 0.8433349665 | J20: =F20-H20 -> 0.1376666667 | K20: =G20-I20 -> 0.1186577901
A21: 19 | B21: Burkholderia ambifaria | C21: Shewanella oneidensis | D21: 0.9693333333 | E21: 0.9941486278 | F21: 0.891 | G21: 0.9493741375 | H21: 0.9773333333 | I21: 0.9967675403 | J21: =F21-H21 -> -0.0863333333 | K21: =G21-I21 -> -0.0473934028
A22: 20 | B22: Burkholderia ambifaria | C22: Cupriavidus necator | D22: 0.96 | E22: 0.9891104278 | F22: 0.8813333333 | G22: 0.9376678363 | H22: 0.96 | I22: 0.990793681 | J22: =F22-H22 -> -0.0786666667 | K22: =G22-I22 -> -0.0531258447
A23: 21 | B23: Burkholderia ambifaria | C23: Cupriavidus pinatubonensis | D23: 0.862 | E23: 0.9274805088 | F23: 0.8736666667 | G23: 0.9409271942 | H23: 0.9163333333 | I23: 0.9650311486 | J23: =F23-H23 -> -0.0426666666 | K23: =G23-I23 -> -0.0241039544
A24: 22 | B24: Burkholderia ambifaria | C24: Zymomonas mobilis subsp. mobilis | D24: 0.9906666667 | E24: 0.9964658797 | F24: 0.9166666667 | G24: 0.9700649026 | H24: 0.986 | I24: 0.9983518702 | J24: =F24-H24 -> -0.0693333333 | K24: =G24-I24 -> -0.0282869676
A25: 23 | B25: Burkholderia ambifaria | C25: Sphingomonas aromaticivorans | D25: 0.9893333333 | E25: 0.9985148158 | F25: 0.827 | G25: 0.9071345304 | H25: 0.985 | I25: 0.9989787553 | J25: =F25-H25 -> -0.158 | K25: =G25-I25 -> -0.0918442249
A26: 24 | B26: Burkholderia ambifaria | C26: Rhizobium radiobacter | D26: 0.9696666667 | E26: 0.9913243103 | F26: 0.8413333333 | G26: 0.9109889846 | H26: 0.9643333333 | I26: 0.9902483799 | J26: =F26-H26 -> -0.123 | K26: =G26-I26 -> -0.0792593953
A27: 25 | B27: Burkholderia ambifaria | C27: Pseudomonas fluorescens | D27: 0.9513333333 | E27: 0.9755752671 | F27: 0.728 | G27: 0.7951121635 | H27: 0.9433333333 | I27: 0.973217779 | J27: =F27-H27 -> -0.2153333333 | K27: =G27-I27 -> -0.1781056155
A28: 26 | B28: Burkholderia ambifaria | C28: Lactobacillus plantarum | D28: 0.94 | E28: 0.9833479755 | F28: 0.745 | G28: 0.8192134504 | H28: 0.9536666667 | I28: 0.989723308 | J28: =F28-H28 -> -0.2086666667 | K28: =G28-I28 -> -0.1705098576
A29: 27 | B29: Burkholderia ambifaria | C29: Streptococcus salivarius | D29: 0.9816666667 | E29: 0.995765858 | F29: 0.915 | G29: 0.9732833574 | H29: 0.978 | I29: 0.996355619 | J29: =F29-H29 -> -0.063 | K29: =G29-I29 -> -0.0230722616
A30: 28 | B30: Burkholderia ambifaria | C30: Bacillus subtilis | D30: 0.9306666667 | E30: 0.9850514579 | F30: 0.915 | G30: 0.9711299404 | H30: 0.929 | I30: 0.9846533192 | J30: =F30-H30 -> -0.014 | K30: =G30-I30 -> -0.0135233788
A31: 29 | B31: Burkholderia ambifaria | C31: Agrobacter rhizogenes | D31: 0.9593333333 | E31: 0.9864706191 | F31: 0.9116666667 | G31: 0.978408032 | H31: 0.9576666667 | I31: 0.9877012701 | J31: =F31-H31 -> -0.046 | K31: =G31-I31 -> -0.0092932381
A32: 30 | B32: Burkholderia ambifaria | C32: Micrococcus luteus | D32: 0.957 | E32: 0.9939607846 | F32: 0.9273333333 | G32: 0.981752753 | H32: 0.9546666667 | I32: 0.9930235691 | J32: =F32-H32 -> -0.0273333334 | K32: =G32-I32 -> -0.0112708161
A33: 31 | B33: Burkholderia ambifaria | C33: Citrobacter freundii | D33: 0.6993333333 | E33: 0.7565762915 | F33: 0.827 | G33: 0.8942651573 | H33: 0.695 | I33: 0.7574350351 | J33: =F33-H33 -> 0.132 | K33: =G33-I33 -> 0.1368301222
A34: 32 | B34: Burkholderia ambifaria | C34: Enterobacter aerogenes | D34: 0.647 | E34: 0.7031241108 | F34: 0.8326666667 | G34: 0.9002052271 | H34: 0.657 | I34: 0.7151798671 | J34: =F34-H34 -> 0.1756666667 | K34: =G34-I34 -> 0.18502536
A35: 33 | B35: Burkholderia ambifaria | C35: Escherichia coli | D35: 0.8066666667 | E35: 0.8833624694 | F35: 0.73 | G35: 0.7989019285 | H35: 0.8203333333 | I35: 0.8996977169 | J35: =F35-H35 -> -0.0903333333 | K35: =G35-I35 -> -0.1007957884
A36: 34 | B36: Burkholderia ambifaria | C36: Edwardsialla ictaluri | D36: 0.6803333333 | E36: 0.7488778312 | F36: 0.7366666667 | G36: 0.8157562457 | H36: 0.7086666667 | I36: 0.7791610499 | J36: =F36-H36 -> 0.028 | K36: =G36-I36 -> 0.0365951958
A37: 35 | B37: Burkholderia ambifaria | C37: Klebsiella oxytoca | D37: 0.8046666667 | E37: 0.8769362302 | F37: 0.8593333333 | G37: 0.9397341118 | H37: 0.807 | I37: 0.8850583937 | J37: =F37-H37 -> 0.0523333333 | K37: =G37-I37 -> 0.0546757181
A38: 36 | B38: Burkholderia ambifaria | C38: Janthinobacterium sp. strain B3 | D38: 0.922 | E38: 0.9613158541 | F38: 0.8763333333 | G38: 0.9492814385 | H38: 0.9076666667 | I38: 0.9586438119 | J38: =F38-H38 -> -0.0313333334 | K38: =G38-I38 -> -0.0093623734
A39: 37 | B39: Shewanella oneidensis | C39: Cupriavidus necator | D39: 0.957 | E39: 0.991306971 | F39: 0.575 | G39: 0.6042294293 | H39: 0.9723333333 | I39: 0.9961001967 | J39: =F39-H39 -> -0.3973333333 | K39: =G39-I39 -> -0.3918707674
A40: 38 | B40: Shewanella oneidensis | C40: Cupriavidus pinatubonensis | D40: 0.9533333333 | E40: 0.9882007775 | F40: 0.978 | G40: 0.9934755044 | H40: 0.971 | I40: 0.9949738042 | J40: =F40-H40 -> 0.007 | K40: =G40-I40 -> -0.0014982998
A41: 39 | B41: Shewanella oneidensis | C41: Zymomonas mobilis subsp. mobilis | D41: 0.8606666667 | E41: 0.9367588529 | F41: 0.9793333333 | G41: 0.9964111939 | H41: 0.859 | I41: 0.9310806521 | J41: =F41-H41 -> 0.1203333333 | K41: =G41-I41 -> 0.0653305418
A42: 40 | B42: Shewanella oneidensis | C42: Sphingomonas aromaticivorans | D42: 0.932 | E42: 0.9753460761 | F42: 0.9503333333 | G42: 0.9880729552 | H42: 0.94 | I42: 0.9847062265 | J42: =F42-H42 -> 0.0103333333 | K42: =G42-I42 -> 0.0033667287
A43: 41 | B43: Shewanella oneidensis | C43: Rhizobium radiobacter | D43: 0.753 | E43: 0.8230505652 | F43: 0.9683333333 | G43: 0.9942524417 | H43: 0.825 | I43: 0.9041643844 | J43: =F43-H43 -> 0.1433333333 | K43: =G43-I43 -> 0.0900880573
A44: 42 | B44: Shewanella oneidensis | C44: Pseudomonas fluorescens | D44: 0.901 | E44: 0.9570814897 | F44: 0.8163333333 | G44: 0.8937089635 | H44: 0.923 | I44: 0.9768270366 | J44: =F44-H44 -> -0.1066666667 | K44: =G44-I44 -> -0.0831180731
A45: 43 | B45: Shewanella oneidensis | C45: Lactobacillus plantarum | D45: 0.924 | E45: 0.9781059267 | F45: 0.922 | G45: 0.969761019 | H45: 0.935 | I45: 0.9817976575 | J45: =F45-H45 -> -0.013 | K45: =G45-I45 -> -0.0120366385
A46: 44 | B46: Shewanella oneidensis | C46: Streptococcus salivarius | D46: 0.958 | E46: 0.9923259927 | F46: 0.9896666667 | G46: 0.9978861523 | H46: 0.95 | I46: 0.9914776971 | J46: =F46-H46 -> 0.0396666667 | K46: =G46-I46 -> 0.0064084552
A47: 45 | B47: Shewanella oneidensis | C47: Bacillus subtilis | D47: 0.9553333333 | E47: 0.9894641066 | F47: 0.9893333333 | G47: 0.9971318895 | H47: 0.9623333333 | I47: 0.9906518538 | J47: =F47-H47 -> 0.027 | K47: =G47-I47 -> 0.0064800357
A48: 46 | B48: Shewanella oneidensis | C48: Agrobacter rhizogenes | D48: 0.838 | E48: 0.9045478513 | F48: 0.989 | G48: 0.9989605267 | H48: 0.862 | I48: 0.9297510777 | J48: =F48-H48 -> 0.127 | K48: =G48-I48 -> 0.069209449
A49: 47 | B49: Shewanella oneidensis | C49: Micrococcus luteus | D49: 0.9813333333 | E49: 0.997787229 | F49: 0.99 | G49: 0.9991145804 | H49: 0.981 | I49: 0.996928263 | J49: =F49-H49 -> 0.009 | K49: =G49-I49 -> 0.0021863174
A50: 48 | B50: Shewanella oneidensis | C50: Citrobacter freundii | D50: 0.979 | E50: 0.994286009 | F50: 0.964 | G50: 0.9896319429 | H50: 0.9796666667 | I50: 0.9963347229 | J50: =F50-H50 -> -0.0156666667 | K50: =G50-I50 -> -0.00670278
A51: 49 | B51: Shewanella oneidensis | C51: Enterobacter aerogenes | D51: 0.975 | E51: 0.9949633561 | F51: 0.9733333333 | G51: 0.9925934192 | H51: 0.9736666667 | I51: 0.9975515913 | J51: =F51-H51 -> -0.0003333334 | K51: =G51-I51 -> -0.0049581721
A52: 50 | B52: Shewanella oneidensis | C52: Escherichia coli | D52: 0.952 | E52: 0.9885731295 | F52: 0.9536666667 | G52: 0.9799083325 | H52: 0.9606666667 | I52: 0.9942019797 | J52: =F52-H52 -> -0.007 | K52: =G52-I52 -> -0.0142936472
A53: 51 | B53: Shewanella oneidensis | C53: Edwardsialla ictaluri | D53: 0.9823333333 | E53: 0.9961522148 | F53: 0.9546666667 | G53: 0.9823776374 | H53: 0.9876666667 | I53: 0.9975126889 | J53: =F53-H53 -> -0.033 | K53: =G53-I53 -> -0.0151350515
A54: 52 | B54: Shewanella oneidensis | C54: Klebsiella oxytoca | D54: 0.987 | E54: 0.9979550652 | F54: 0.9256666667 | G54: 0.9803106949 | H54: 0.9883333333 | I54: 0.9993070919 | J54: =F54-H54 -> -0.0626666666 | K54: =G54-I54 -> -0.018996397
A55: 53 | B55: Shewanella oneidensis | C55: Janthinobacterium sp. strain B3 | D55: 0.9283333333 | E55: 0.9789155421 | F55: 0.9533333333 | G55: 0.9916815459 | H55: 0.9546666667 | I55: 0.9913187528 | J55: =F55-H55 -> -0.0013333334 | K55: =G55-I55 -> 0.0003627931
A56: 54 | B56: Cupriavidus necator | C56: Cupriavidus pinatubonensis | D56: 0.8376666667 | E56: 0.9093641962 | F56: 0.97 | G56: 0.9923117655 | H56: 0.8586666667 | I56: 0.9166985296 | J56: =F56-H56 -> 0.1113333333 | K56: =G56-I56 -> 0.0756132359
A57: 55 | B57: Cupriavidus necator | C57: Zymomonas mobilis subsp. mobilis | D57: 0.9216666667 | E57: 0.9748828036 | F57: 0.978 | G57: 0.99677621 | H57: 0.9503333333 | I57: 0.9878166437 | J57: =F57-H57 -> 0.0276666667 | K57: =G57-I57 -> 0.0089595663
A58: 56 | B58: Cupriavidus necator | C58: Sphingomonas aromaticivorans | D58: 0.9196666667 | E58: 0.9736550425 | F58: 0.946 | G58: 0.9860162385 | H58: 0.942 | I58: 0.9856196559 | J58: =F58-H58 -> 0.004 | K58: =G58-I58 -> 0.0003965826
A59: 57 | B59: Cupriavidus necator | C59: Rhizobium radiobacter | D59: 0.9106666667 | E59: 0.9580135923 | F59: 0.962 | G59: 0.9910224274 | H59: 0.9206666667 | I59: 0.9743435046 | J59: =F59-H59 -> 0.0413333333 | K59: =G59-I59 -> 0.0166789228
A60: 58 | B60: Cupriavidus necator | C60: Pseudomonas fluorescens | D60: 0.846 | E60: 0.917856711 | F60: 0.8136666667 | G60: 0.8881823711 | H60: 0.8443333333 | I60: 0.9160316306 | J60: =F60-H60 -> -0.0306666666 | K60: =G60-I60 -> -0.0278492595
A61: 59 | B61: Cupriavidus necator | C61: Lactobacillus plantarum | D61: 0.9443333333 | E61: 0.9822020206 | F61: 0.9143333333 | G61: 0.9651216246 | H61: 0.9603333333 | I61: 0.9895165693 | J61: =F61-H61 -> -0.046 | K61: =G61-I61 -> -0.0243949447
A62: 60 | B62: Cupriavidus necator | C62: Streptococcus salivarius | D62: 0.9146666667 | E62: 0.9745631367 | F62: 0.9863333333 | G62: 0.9984567956 | H62: 0.933 | I62: 0.9823487384 | J62: =F62-H62 -> 0.0533333333 | K62: =G62-I62 -> 0.0161080572
A63: 61 | B63: Cupriavidus necator | C63: Bacillus subtilis | D63: 0.85 | E63: 0.9283728197 | F63: 0.9853333333 | G63: 0.9984828047 | H63: 0.8726666667 | I63: 0.9431155122 | J63: =F63-H63 -> 0.1126666666 | K63: =G63-I63 -> 0.0553672925
A64: 62 | B64: Cupriavidus necator | C64: Agrobacter rhizogenes | D64: 0.894 | E64: 0.946340636 | F64: 0.9856666667 | G64: 0.9989142884 | H64: 0.894 | I64: 0.9571672974 | J64: =F64-H64 -> 0.0916666667 | K64: =G64-I64 -> 0.041746991
A65: 63 | B65: Cupriavidus necator | C65: Micrococcus luteus | D65: 0.9523333333 | E65: 0.9885998054 | F65: 0.986 | G65: 0.9991494814 | H65: 0.9553333333 | I65: 0.99103621 | J65: =F65-H65 -> 0.0306666667 | K65: =G65-I65 -> 0.0081132714
A66: 64 | B66: Cupriavidus necator | C66: Citrobacter freundii | D66: 0.963 | E66: 0.9913512086 | F66: 0.9566666667 | G66: 0.9890575205 | H66: 0.9713333333 | I66: 0.9925031655 | J66: =F66-H66 -> -0.0146666666 | K66: =G66-I66 -> -0.003445645
A67: 65 | B67: Cupriavidus necator | C67: Enterobacter aerogenes | D67: 0.939 | E67: 0.9823349558 | F67: 0.964 | G67: 0.9901236698 | H67: 0.9313333333 | I67: 0.9829393887 | J67: =F67-H67 -> 0.0326666667 | K67: =G67-I67 -> 0.0071842811
A68: 66 | B68: Cupriavidus necator | C68: Escherichia coli | D68: 0.9023333333 | E68: 0.9594816594 | F68: 0.945 | G68: 0.9704308079 | H68: 0.9043333333 | I68: 0.9627761407 | J68: =F68-H68 -> 0.0406666667 | K68: =G68-I68 -> 0.0076546672
A69: 67 | B69: Cupriavidus necator | C69: Edwardsialla ictaluri | D69: 0.9673333333 | E69: 0.9925649649 | F69: 0.944 | G69: 0.9735234411 | H69: 0.9763333333 | I69: 0.9970140707 | J69: =F69-H69 -> -0.0323333333 | K69: =G69-I69 -> -0.0234906296
A70: 68 | B70: Cupriavidus necator | C70: Klebsiella oxytoca | D70: 0.946 | E70: 0.9825514757 | F70: 0.9233333333 | G70: 0.9766007355 | H70: 0.959 | I70: 0.9912347236 | J70: =F70-H70 -> -0.0356666667 | K70: =G70-I70 -> -0.0146339881
A71: 69 | B71: Cupriavidus necator | C71: Janthinobacterium sp. strain B3 | D71: 0.8046666667 | E71: 0.8828711871 | F71: 0.953 | G71: 0.9897419812 | H71: 0.825 | I71: 0.9008921331 | J71: =F71-H71 -> 0.128 | K71: =G71-I71 -> 0.0888498481
A72: 70 | B72: Cupriavidus pinatubonensis | C72: Zymomonas mobilis subsp. mobilis | D72: 0.967 | E72: 0.9936675713 | F72: 0.6053333333 | G72: 0.6484506157 | H72: 0.9606666667 | I72: 0.9932056325 | J72: =F72-H72 -> -0.3553333334 | K72: =G72-I72 -> -0.3447550168
A73: 71 | B73: Cupriavidus pinatubonensis | C73: Sphingomonas aromaticivorans | D73: 0.961 | E73: 0.9947732899 | F73: 0.9383333333 | G73: 0.9807690769 | H73: 0.9633333333 | I73: 0.9957362921 | J73: =F73-H73 -> -0.025 | K73: =G73-I73 -> -0.0149672152
A74: 72 | B74: Cupriavidus pinatubonensis | C74: Rhizobium radiobacter | D74: 0.912 | E74: 0.9698228183 | F74: 0.954 | G74: 0.9882965887 | H74: 0.9096666667 | I74: 0.9671474416 | J74: =F74-H74 -> 0.0443333333 | K74: =G74-I74 -> 0.0211491471
A75: 73 | B75: Cupriavidus pinatubonensis | C75: Pseudomonas fluorescens | D75: 0.7836666667 | E75: 0.8632481273 | F75: 0.9386666667 | G75: 0.9840233219 | H75: 0.806 | I75: 0.8741999434 | J75: =F75-H75 -> 0.1326666667 | K75: =G75-I75 -> 0.1098233785
A76: 74 | B76: Cupriavidus pinatubonensis | C76: Lactobacillus plantarum | D76: 0.916 | E76: 0.9750868747 | F76: 0.9433333333 | G76: 0.9832077044 | H76: 0.9393333333 | I76: 0.9854738273 | J76: =F76-H76 -> 0.004 | K76: =G76-I76 -> -0.0022661229
A77: 75 | B77: Cupriavidus pinatubonensis | C77: Streptococcus salivarius | D77: 0.9623333333 | E77: 0.9933532395 | F77: 0.8733333333 | G77: 0.9467447768 | H77: 0.968 | I77: 0.995263683 | J77: =F77-H77 -> -0.0946666667 | K77: =G77-I77 -> -0.0485189062
A78: 76 | B78: Cupriavidus pinatubonensis | C78: Bacillus subtilis | D78: 0.8973333333 | E78: 0.9659143453 | F78: 0.866 | G78: 0.9418470703 | H78: 0.911 | I78: 0.971612553 | J78: =F78-H78 -> -0.045 | K78: =G78-I78 -> -0.0297654827
A79: 77 | B79: Cupriavidus pinatubonensis | C79: Agrobacter rhizogenes | D79: 0.8743333333 | E79: 0.9408256032 | F79: 0.9256666667 | G79: 0.9709409857 | H79: 0.895 | I79: 0.9527453121 | J79: =F79-H79 -> 0.0306666667 | K79: =G79-I79 -> 0.0181956736
A80: 78 | B80: Cupriavidus pinatubonensis | C80: Micrococcus luteus | D80: 0.966 | E80: 0.9921096951 | F80: 0.9373333333 | G80: 0.9828555817 | H80: 0.9676666667 | I80: 0.9952572363 | J80: =F80-H80 -> -0.0303333334 | K80: =G80-I80 -> -0.0124016546
A81: 79 | B81: Cupriavidus pinatubonensis | C81: Citrobacter freundii | D81: 0.861 | E81: 0.9355724395 | F81: 0.6913333333 | G81: 0.7621428978 | H81: 0.898 | I81: 0.9592580259 | J81: =F81-H81 -> -0.2066666667 | K81: =G81-I81 -> -0.1971151281
A82: 80 | B82: Cupriavidus pinatubonensis | C82: Enterobacter aerogenes | D82: 0.8453333333 | E82: 0.91882327 | F82: 0.7516666667 | G82: 0.825676369 | H82: 0.8753333333 | I82: 0.9501441836 | J82: =F82-H82 -> -0.1236666666 | K82: =G82-I82 -> -0.1244678146
A83: 81 | B83: Cupriavidus pinatubonensis | C83: Escherichia coli | D83: 0.7456666667 | E83: 0.8107887371 | F83: 0.8826666667 | G83: 0.9441947772 | H83: 0.7643333333 | I83: 0.8520608959 | J83: =F83-H83 -> 0.1183333334 | K83: =G83-I83 -> 0.0921338813
A84: 82 | B84: Cupriavidus pinatubonensis | C84: Edwardsialla ictaluri | D84: 0.863 | E84: 0.929482762 | F84: 0.8693333333 | G84: 0.9353019008 | H84: 0.9133333333 | I84: 0.9662611328 | J84: =F84-H84 -> -0.044 | K84: =G84-I84 -> -0.030959232
A85: 83 | B85: Cupriavidus pinatubonensis | C85: Klebsiella oxytoca | D85: 0.8393333333 | E85: 0.9079834929 | F85: 0.9236666667 | G85: 0.9730775079 | H85: 0.882 | I85: 0.9530518634 | J85: =F85-H85 -> 0.0416666667 | K85: =G85-I85 -> 0.0200256445
A86: 84 | B86: Cupriavidus pinatubonensis | C86: Janthinobacterium sp. strain B3 | D86: 0.69 | E86: 0.7589611225 | F86: 0.9176666667 | G86: 0.9723234674 | H86: 0.7193333333 | I86: 0.7822834712 | J86: =F86-H86 -> 0.1983333334 | K86: =G86-I86 -> 0.1900399962
A87: 85 | B87: Zymomonas mobilis subsp. mobilis | C87: Sphingomonas aromaticivorans | D87: 0.7596666667 | E87: 0.8454981647 | F87: 0.9523333333 | G87: 0.9899800642 | H87: 0.7793333333 | I87: 0.8675894178 | J87: =F87-H87 -> 0.173 | K87: =G87-I87 -> 0.1223906464
A88: 86 | B88: Zymomonas mobilis subsp. mobilis | C88: Rhizobium radiobacter | D88: 0.8823333333 | E88: 0.9517407399 | F88: 0.9733333333 | G88: 0.9965828093 | H88: 0.896 | I88: 0.954441681 | J88: =F88-H88 -> 0.0773333333 | K88: =G88-I88 -> 0.0421411283
A89: 87 | B89: Zymomonas mobilis subsp. mobilis | C89: Pseudomonas fluorescens | D89: 0.921 | E89: 0.9705108358 | F89: 0.97 | G89: 0.9958892343 | H89: 0.9063333333 | I89: 0.9687562244 | J89: =F89-H89 -> 0.0636666667 | K89: =G89-I89 -> 0.0271330099
A90: 88 | B90: Zymomonas mobilis subsp. mobilis | C90: Lactobacillus plantarum | D90: 0.9616666667 | E90: 0.995043384 | F90: 0.9716666667 | G90: 0.995076729 | H90: 0.9633333333 | I90: 0.9939376654 | J90: =F90-H90 -> 0.0083333334 | K90: =G90-I90 -> 0.0011390636
A91: 89 | B91: Zymomonas mobilis subsp. mobilis | C91: Streptococcus salivarius | D91: 0.955 | E91: 0.9902417109 | F91: 0.8563333333 | G91: 0.9356035614 | H91: 0.9493333333 | I91: 0.9885649044 | J91: =F91-H91 -> -0.093 | K91: =G91-I91 -> -0.052961343
A92: 90 | B92: Zymomonas mobilis subsp. mobilis | C92: Bacillus subtilis | D92: 0.9166666667 | E92: 0.9683194055 | F92: 0.8583333333 | G92: 0.9307729893 | H92: 0.8903333333 | I92: 0.9555522902 | J92: =F92-H92 -> -0.032 | K92: =G92-I92 -> -0.0247793009
A93: 91 | B93: Zymomonas mobilis subsp. mobilis | C93: Agrobacter rhizogenes | D93: 0.9363333333 | E93: 0.982705974 | F93: 0.9286666667 | G93: 0.9735392243 | H93: 0.9223333333 | I93: 0.9770675649 | J93: =F93-H93 -> 0.0063333334 | K93: =G93-I93 -> -0.0035283406
A94: 92 | B94: Zymomonas mobilis subsp. mobilis | C94: Micrococcus luteus | D94: 0.9806666667 | E94: 0.9979372813 | F94: 0.9423333333 | G94: 0.984857168 | H94: 0.9833333333 | I94: 0.9977327656 | J94: =F94-H94 -> -0.041 | K94: =G94-I94 -> -0.0128755976
A95: 93 | B95: Zymomonas mobilis subsp. mobilis | C95: Citrobacter freundii | D95: 0.9903333333 | E95: 0.9987004361 | F95: 0.7563333333 | G95: 0.8352906079 | H95: 0.9903333333 | I95: 0.9971845745 | J95: =F95-H95 -> -0.234 | K95: =G95-I95 -> -0.1618939666
A96: 94 | B96: Zymomonas mobilis subsp. mobilis | C96: Enterobacter aerogenes | D96: 0.9833333333 | E96: 0.9963794051 | F96: 0.8243333333 | G96: 0.9044300325 | H96: 0.979 | I96: 0.9970300763 | J96: =F96-H96 -> -0.1546666667 | K96: =G96-I96 -> -0.0926000438
A97: 95 | B97: Zymomonas mobilis subsp. mobilis | C97: Escherichia coli | D97: 0.9743333333 | E97: 0.9963656225 | F97: 0.9356666667 | G97: 0.9782608696 | H97: 0.971 | I97: 0.9956602656 | J97: =F97-H97 -> -0.0353333333 | K97: =G97-I97 -> -0.017399396
A98: 96 | B98: Zymomonas mobilis subsp. mobilis | C98: Edwardsialla ictaluri | D98: 0.9923333333 | E98: 0.999057894 | F98: 0.9256666667 | G98: 0.9773721154 | H98: 0.995 | I98: 0.9992143929 | J98: =F98-H98 -> -0.0693333333 | K98: =G98-I98 -> -0.0218422775
A99: 97 | B99: Zymomonas mobilis subsp. mobilis | C99: Klebsiella oxytoca | D99: 0.9936666667 | E99: 0.9989222911 | F99: 0.9323333333 | G99: 0.9802466726 | H99: 0.992 | I99: 0.9994809302 | J99: =F99-H99 -> -0.0596666667 | K99: =G99-I99 -> -0.0192342576
A100: 98 | B100: Zymomonas mobilis subsp. mobilis | C100: Janthinobacterium sp. strain B3 | D100: 0.9286666667 | E100: 0.9831972563 | F100: 0.9343333333 | G100: 0.9822702666 | H100: 0.9303333333 | I100: 0.9819234791 | J100: =F100-H100 -> 0.004 | K100: =G100-I100 -> 0.0003467875
A101: 99 | B101: Sphingomonas aromaticivorans | C101: Rhizobium radiobacter | D101: 0.9136666667 | E101: 0.9683692006 | F101: 0.6863333333 | G101: 0.748938519 | H101: 0.926 | I101: 0.9748814698 | J101: =F101-H101 -> -0.2396666667 | K101: =G101-I101 -> -0.2259429508
A102: 100 | B102: Sphingomonas aromaticivorans | C102: Pseudomonas fluorescens | D102: 0.9306666667 | E102: 0.9823627433 | F102: 0.8476666667 | G102: 0.9230536329 | H102: 0.915 | I102: 0.9768312603 | J102: =F102-H102 -> -0.0673333333 | K102: =G102-I102 -> -0.0537776274
A103: 101 | B103: Sphingomonas aromaticivorans | C103: Lactobacillus plantarum | D103: 0.966 | E103: 0.9917922512 | F103: 0.8403333333 | G103: 0.914335484 | H103: 0.9656666667 | I103: 0.9941146159 | J103: =F103-H103 -> -0.1253333334 | K103: =G103-I103 -> -0.0797791319
A104: 102 | B104: Sphingomonas aromaticivorans | C104: Streptococcus salivarius | D104: 0.9353333333 | E104: 0.9793623645 | F104: 0.9123333333 | G104: 0.9731817664 | H104: 0.9283333333 | I104: 0.9790475881 | J104: =F104-H104 -> -0.016 | K104: =G104-I104 -> -0.0058658217
A105: 103 | B105: Sphingomonas aromaticivorans | C105: Bacillus subtilis | D105: 0.9036666667 | E105: 0.9634430397 | F105: 0.8973333333 | G105: 0.96294331 | H105: 0.8676666667 | I105: 0.9471960452 | J105: =F105-H105 -> 0.0296666666 | K105: =G105-I105 -> 0.0157472648
A106: 104 | B106: Sphingomonas aromaticivorans | C106: Agrobacter rhizogenes | D106: 0.946 | E106: 0.9848565011 | F106: 0.9056666667 | G106: 0.9659430219 | H106: 0.94 | I106: 0.9854371479 | J106: =F106-H106 -> -0.0343333333 | K106: =G106-I106 -> -0.019494126
A107: 105 | B107: Sphingomonas aromaticivorans | C107: Micrococcus luteus | D107: 0.9513333333 | E107: 0.9893436202 | F107: 0.9006666667 | G107: 0.9642637701 | H107: 0.9506666667 | I107: 0.9900171882 | J107: =F107-H107 -> -0.05 | K107: =G107-I107 -> -0.0257534181
A108: 106 | B108: Sphingomonas aromaticivorans | C108: Citrobacter freundii | D108: 0.992 | E108: 0.998872496 | F108: 0.905 | G108: 0.9576937031 | H108: 0.9913333333 | I108: 0.9975918276 | J108: =F108-H108 -> -0.0863333333 | K108: =G108-I108 -> -0.0398981245
A109: 107 | B109: Sphingomonas aromaticivorans | C109: Enterobacter aerogenes | D109: 0.982 | E109: 0.9976489586 | F109: 0.9056666667 | G109: 0.9619860876 | H109: 0.976 | I109: 0.9961677758 | J109: =F109-H109 -> -0.0703333333 | K109: =G109-I109 -> -0.0341816882
A110: 108 | B110: Sphingomonas aromaticivorans | C110: Escherichia coli | D110: 0.9706666667 | E110: 0.9974284373 | F110: 0.844 | G110: 0.9189261947 | H110: 0.964 | I110: 0.9960512908 | J110: =F110-H110 -> -0.12 | K110: =G110-I110 -> -0.0771250961
A111: 109 | B111: Sphingomonas aromaticivorans | C111: Edwardsialla ictaluri | D111: 0.9943333333 | E111: 0.9996151993 | F111: 0.8443333333 | G111: 0.9249236178 | H111: 0.9943333333 | I111: 0.9992452926 | J111: =F111-H111 -> -0.15 | K111: =G111-I111 -> -0.0743216748
A112: 110 | B112: Sphingomonas aromaticivorans | C112: Klebsiella oxytoca | D112: 0.9916666667 | E112: 0.9987102172 | F112: 0.943 | G112: 0.9845563965 | H112: 0.99 | I112: 0.9992277309 | J112: =F112-H112 -> -0.047 | K112: =G112-I112 -> -0.0146713344
A113: 111 | B113: Sphingomonas aromaticivorans | C113: Janthinobacterium sp. strain B3 | D113: 0.9306666667 | E113: 0.9855369604 | F113: 0.9493333333 | G113: 0.9865864372 | H113: 0.9316666667 | I113: 0.9852341883 | J113: =F113-H113 -> 0.0176666666 | K113: =G113-I113 -> 0.0013522489
A114: 112 | B114: Rhizobium radiobacter | C114: Pseudomonas fluorescens | D114: 0.8163333333 | E114: 0.896374559 | F114: 0.8533333333 | G114: 0.9195808673 | H114: 0.793 | I114: 0.873934073 | J114: =F114-H114 -> 0.0603333333 | K114: =G114-I114 -> 0.0456467943
A115: 113 | B115: Rhizobium radiobacter | C115: Lactobacillus plantarum | D115: 0.8636666667 | E115: 0.941390689 | F115: 0.8573333333 | G115: 0.9175772803 | H115: 0.8663333333 | I115: 0.9407531335 | J115: =F115-H115 -> -0.009 | K115: =G115-I115 -> -0.0231758532
A116: 114 | B116: Rhizobium radiobacter | C116: Streptococcus salivarius | D116: 0.9256666667 | E116: 0.9767645704 | F116: 0.954 | G116: 0.9886613825 | H116: 0.9206666667 | I116: 0.9801866517 | J116: =F116-H116 -> 0.0333333333 | K116: =G116-I116 -> 0.0084747308
A117: 115 | B117: Rhizobium radiobacter | C117: Bacillus subtilis | D117: 0.9276666667 | E117: 0.9729305678 | F117: 0.9506666667 | G117: 0.9880469461 | H117: 0.9176666667 | I117: 0.9649257786 | J117: =F117-H117 -> 0.033 | K117: =G117-I117 -> 0.0231211675
A118: 116 | B118: Rhizobium radiobacter | C118: Agrobacter rhizogenes | D118: 0.619 | E118: 0.6637979634 | F118: 0.943 | G118: 0.9838241414 | H118: 0.5716666667 | I118: 0.6114955167 | J118: =F118-H118 -> 0.3713333333 | K118: =G118-I118 -> 0.3723286247
A119: 117 | B119: Rhizobium radiobacter | C119: Micrococcus luteus | D119: 0.9766666667 | E119: 0.9938214027 | F119: 0.9433333333 | G119: 0.9857739319 | H119: 0.9786666667 | I119: 0.9945220913 | J119: =F119-H119 -> -0.0353333334 | K119: =G119-I119 -> -0.0087481594
A120: 118 | B120: Rhizobium radiobacter | C120: Citrobacter freundii | D120: 0.9646666667 | E120: 0.9929250903 | F120: 0.9206666667 | G120: 0.9730859553 | H120: 0.9603333333 | I120: 0.9898193415 | J120: =F120-H120 -> -0.0396666666 | K120: =G120-I120 -> -0.0167333862
A121: 119 | B121: Rhizobium radiobacter | C121: Enterobacter aerogenes | D121: 0.9563333333 | E121: 0.9908116873 | F121: 0.921 | G121: 0.9746111534 | H121: 0.9433333333 | I121: 0.9872913495 | J121: =F121-H121 -> -0.0223333333 | K121: =G121-I121 -> -0.0126801961
A122: 120 | B122: Rhizobium radiobacter | C122: Escherichia coli | D122: 0.9303333333 | E122: 0.976298408 | F122: 0.8416666667 | G122: 0.9120282356 | H122: 0.927 | I122: 0.9693562112 | J122: =F122-H122 -> -0.0853333333 | K122: =G122-I122 -> -0.0573279756
A123: 121 | B123: Rhizobium radiobacter | C123: Edwardsialla ictaluri | D123: 0.9736666667 | E123: 0.9937287037 | F123: 0.8436666667 | G123: 0.9158228912 | H123: 0.971 | I123: 0.9949629115 | J123: =F123-H123 -> -0.1273333333 | K123: =G123-I123 -> -0.0791400203
A124: 122 | B124: Rhizobium radiobacter | C124: Klebsiella oxytoca | D124: 0.9756666667 | E124: 0.9961282065 | F124: 0.9573333333 | G124: 0.9894745547 | H124: 0.9783333333 | I124: 0.9944169435 | J124: =F124-H124 -> -0.021 | K124: =G124-I124 -> -0.0049423888
A125: 123 | B125: Rhizobium radiobacter | C125: Janthinobacterium sp. strain B3 | D125: 0.8986666667 | E125: 0.9544374573 | F125: 0.9623333333 | G125: 0.9903355214 | H125: 0.8963333333 | I125: 0.9564670534 | J125: =F125-H125 -> 0.066 | K125: =G125-I125 -> 0.033868468
A126: 124 | B126: Pseudomonas fluorescens | C126: Lactobacillus plantarum | D126: 0.927 | E126: 0.97645713 | F126: 0.5983333333 | G126: 0.6303434174 | H126: 0.936 | I126: 0.9792745561 | J126: =F126-H126 -> -0.3376666667 | K126: =G126-I126 -> -0.3489311387
A127: 125 | B127: Pseudomonas fluorescens | C127: Streptococcus salivarius | D127: 0.954 | E127: 0.9887302954 | F127: 0.961 | G127: 0.9908959389 | H127: 0.9603333333 | I127: 0.9909506246 | J127: =F127-H127 -> 0.0006666667 | K127: =G127-I127 -> -5.46857e-05
A128: 126 | B128: Pseudomonas fluorescens | C128: Bacillus subtilis | D128: 0.8743333333 | E128: 0.9324846969 | F128: 0.9593333333 | G128: 0.9888625637 | H128: 0.865 | I128: 0.9331029123 | J128: =F128-H128 -> 0.0943333333 | K128: =G128-I128 -> 0.0557596514
A129: 127 | B129: Pseudomonas fluorescens | C129: Agrobacter rhizogenes | D129: 0.7706666667 | E129: 0.8464160401 | F129: 0.9573333333 | G129: 0.9918044776 | H129: 0.7903333333 | I129: 0.867689675 | J129: =F129-H129 -> 0.167 | K129: =G129-I129 -> 0.1241148026
A130: 128 | B130: Pseudomonas fluorescens | C130: Micrococcus luteus | D130: 0.9666666667 | E130: 0.9897695464 | F130: 0.9573333333 | G130: 0.9916284163 | H130: 0.9683333333 | I130: 0.9930195677 | J130: =F130-H130 -> -0.011 | K130: =G130-I130 -> -0.0013911514
A131: 129 | B131: Pseudomonas fluorescens | C131: Citrobacter freundii | D131: 0.9416666667 | E131: 0.9808486602 | F131: 0.8933333333 | G131: 0.9578528696 | H131: 0.9406666667 | I131: 0.981184555 | J131: =F131-H131 -> -0.0473333334 | K131: =G131-I131 -> -0.0233316854
A132: 130 | B132: Pseudomonas fluorescens | C132: Enterobacter aerogenes | D132: 0.922 | E132: 0.9728874417 | F132: 0.91 | G132: 0.9671794528 | H132: 0.91 | I132: 0.9621032395 | J132: =F132-H132 -> 0 | K132: =G132-I132 -> 0.0050762133
A133: 131 | B133: Pseudomonas fluorescens | C133: Escherichia coli | D133: 0.8463333333 | E133: 0.9187487996 | F133: 0.7586666667 | G133: 0.8323767037 | H133: 0.8446666667 | I133: 0.9216226899 | J133: =F133-H133 -> -0.086 | K133: =G133-I133 -> -0.0892459862
A134: 132 | B134: Pseudomonas fluorescens | C134: Edwardsialla ictaluri | D134: 0.9516666667 | E134: 0.9857225807 | F134: 0.807 | G134: 0.8699933666 | H134: 0.9526666667 | I134: 0.9895879275 | J134: =F134-H134 -> -0.1456666667 | K134: =G134-I134 -> -0.1195945609
A135: 133 | B135: Pseudomonas fluorescens | C135: Klebsiella oxytoca | D135: 0.944 | E135: 0.9866044435 | F135: 0.899 | G135: 0.9667930959 | H135: 0.9603333333 | I135: 0.9902123673 | J135: =F135-H135 -> -0.0613333333 | K135: =G135-I135 -> -0.0234192714
A136: 134 | B136: Pseudomonas fluorescens | C136: Janthinobacterium sp. strain B3 | D136: 0.764 | E136: 0.8356538456 | F136: 0.925 | G136: 0.9788315128 | H136: 0.7796666667 | I136: 0.8638014313 | J136: =F136-H136 -> 0.1453333333 | K136: =G136-I136 -> 0.1150300815
A137: 135 | B137: Lactobacillus plantarum | C137: Streptococcus salivarius | D137: 0.786 | E137: 0.8653590851 | F137: 0.961 | G137: 0.9930562472 | H137: 0.7963333333 | I137: 0.8806748663 | J137: =F137-H137 -> 0.1646666667 | K137: =G137-I137 -> 0.1123813809
A138: 136 | B138: Lactobacillus plantarum | C138: Bacillus subtilis | D138: 0.9546666667 | E138: 0.9838316996 | F138: 0.9606666667 | G138: 0.9930695851 | H138: 0.9516666667 | I138: 0.9841151317 | J138: =F138-H138 -> 0.009 | K138: =G138-I138 -> 0.0089544534
A139: 137 | B139: Lactobacillus plantarum | C139: Agrobacter rhizogenes | D139: 0.874 | E139: 0.9413833531 | F139: 0.964 | G139: 0.9954953193 | H139: 0.869 | I139: 0.9377689826 | J139: =F139-H139 -> 0.095 | K139: =G139-I139 -> 0.0577263367
A140: 138 | B140: Lactobacillus plantarum | C140: Micrococcus luteus | D140: 0.9673333333 | E140: 0.9916386421 | F140: 0.966 | G140: 0.995578237 | H140: 0.969 | I140: 0.9942313233 | J140: =F140-H140 -> -0.003 | K140: =G140-I140 -> 0.0013469137
A141: 139 | B141: Lactobacillus plantarum | C141: Citrobacter freundii | D141: 0.9293333333 | E141: 0.9786532285 | F141: 0.898 | G141: 0.9583083617 | H141: 0.9386666667 | I141: 0.9839730822 | J141: =F141-H141 -> -0.0406666667 | K141: =G141-I141 -> -0.0256647205
A142: 140 | B142: Lactobacillus plantarum | C142: Enterobacter aerogenes | D142: 0.9206666667 | E142: 0.9788199533 | F142: 0.911 | G142: 0.9677829964 | H142: 0.9403333333 | I142: 0.9860747034 | J142: =F142-H142 -> -0.0293333333 | K142: =G142-I142 -> -0.018291707
A143: 141 | B143: Lactobacillus plantarum | C143: Escherichia coli | D143: 0.9156666667 | E143: 0.9691803722 | F143: 0.7513333333 | G143: 0.8214857977 | H143: 0.9323333333 | I143: 0.9778700667 | J143: =F143-H143 -> -0.181 | K143: =G143-I143 -> -0.156384269
A144: 142 | B144: Lactobacillus plantarum | C144: Edwardsialla ictaluri | D144: 0.9266666667 | E144: 0.9744170858 | F144: 0.805 | G144: 0.8725678192 | H144: 0.9423333333 | I144: 0.9845875185 | J144: =F144-H144 -> -0.1373333333 | K144: =G144-I144 -> -0.1120196993
A145: 143 | B145: Lactobacillus plantarum | C145: Klebsiella oxytoca | D145: 0.9283333333 | E145: 0.9771189161 | F145: 0.9326666667 | G145: 0.9823362896 | H145: 0.9376666667 | I145: 0.9839777505 | J145: =F145-H145 -> -0.005 | K145: =G145-I145 -> -0.0016414609
A146: 144 | B146: Lactobacillus plantarum | C146: Janthinobacterium sp. strain B3 | D146: 0.9256666667 | E146: 0.9809613661 | F146: 0.94 | G146: 0.9852357444 | H146: 0.9433333333 | I146: 0.9862165306 | J146: =F146-H146 -> -0.0033333333 | K146: =G146-I146 -> -0.0009807862
A147: 145 | B147: Streptococcus salivarius | C147: Bacillus subtilis | D147: 0.9223333333 | E147: 0.9744004133 | F147: 0.577 | G147: 0.602454144 | H147: 0.9163333333 | I147: 0.969073446 | J147: =F147-H147 -> -0.3393333333 | K147: =G147-I147 -> -0.366619302
A148: 146 | B148: Streptococcus salivarius | C148: Agrobacter rhizogenes | D148: 0.92 | E148: 0.9727847392 | F148: 0.774 | G148: 0.8594750349 | H148: 0.9096666667 | I148: 0.9699630894 | J148: =F148-H148 -> -0.1356666667 | K148: =G148-I148 -> -0.1104880545
A149: 147 | B149: Streptococcus salivarius | C149: Micrococcus luteus | D149: 0.9506666667 | E149: 0.9862789968 | F149: 0.79 | G149: 0.8785085559 | H149: 0.9513333333 | I149: 0.9882779155 | J149: =F149-H149 -> -0.1613333333 | K149: =G149-I149 -> -0.1097693596
A150: 148 | B150: Streptococcus salivarius | C150: Citrobacter freundii | D150: 0.9776666667 | E150: 0.9970883188 | F150: 0.8786666667 | G150: 0.9511476443 | H150: 0.9763333333 | I150: 0.9950093722 | J150: =F150-H150 -> -0.0976666666 | K150: =G150-I150 -> -0.0438617279
A151: 149 | B151: Streptococcus salivarius | C151: Enterobacter aerogenes | D151: 0.9673333333 | E151: 0.9951325262 | F151: 0.9033333333 | G151: 0.9600294058 | H151: 0.968 | I151: 0.9939556717 | J151: =F151-H151 -> -0.0646666667 | K151: =G151-I151 -> -0.0339262659
A152: 150 | B152: Streptococcus salivarius | C152: Escherichia coli | D152: 0.964 | E152: 0.9945756655 | F152: 0.9266666667 | G152: 0.9762779564 | H152: 0.9646666667 | I152: 0.9919674233 | J152: =F152-H152 -> -0.038 | K152: =G152-I152 -> -0.0156894669
A153: 151 | B153: Streptococcus salivarius | C153: Edwardsialla ictaluri | D153: 0.9756666667 | E153: 0.9969785027 | F153: 0.903 | G153: 0.9669820506 | H153: 0.9803333333 | I153: 0.9956676015 | J153: =F153-H153 -> -0.0773333333 | K153: =G153-I153 -> -0.0286855509
A154: 152 | B154: Streptococcus salivarius | C154: Klebsiella oxytoca | D154: 0.9696666667 | E154: 0.9953915053 | F154: 0.969 | G154: 0.9938987629 | H154: 0.9676666667 | I154: 0.9928548436 | J154: =F154-H154 -> 0.0013333333 | K154: =G154-I154 -> 0.0010439193
A155: 153 | B155: Streptococcus salivarius | C155: Janthinobacterium sp. strain B3 | D155: 0.9563333333 | E155: 0.9913547654 | F155: 0.9726666667 | G155: 0.9944409519 | H155: 0.9526666667 | I155: 0.9908372517 | J155: =F155-H155 -> 0.02 | K155: =G155-I155 -> 0.0036037002
A156: 154 | B156: Bacillus subtilis | C156: Agrobacter rhizogenes | D156: 0.9166666667 | E156: 0.966979383 | F156: 0.7753333333 | G156: 0.8645265728 | H156: 0.915 | I156: 0.9679566124 | J156: =F156-H156 -> -0.1396666667 | K156: =G156-I156 -> -0.1034300396
A157: 155 | B157: Bacillus subtilis | C157: Micrococcus luteus | D157: 0.9166666667 | E157: 0.9755312518 | F157: 0.7836666667 | G157: 0.8672630819 | H157: 0.929 | I157: 0.9818243335 | J157: =F157-H157 -> -0.1453333333 | K157: =G157-I157 -> -0.1145612516
A158: 156 | B158: Bacillus subtilis | C158: Citrobacter freundii | D158: 0.9433333333 | E158: 0.9888354431 | F158: 0.872 | G158: 0.9452578143 | H158: 0.9406666667 | I158: 0.9857739319 | J158: =F158-H158 -> -0.0686666667 | K158: =G158-I158 -> -0.0405161176
A159: 157 | B159: Bacillus subtilis | C159: Enterobacter aerogenes | D159: 0.9443333333 | E159: 0.9880618402 | F159: 0.8963333333 | G159: 0.9556127557 | H159: 0.935 | I159: 0.9841916028 | J159: =F159-H159 -> -0.0386666667 | K159: =G159-I159 -> -0.0285788471
A160: 158 | B160: Bacillus subtilis | C160: Escherichia coli | D160: 0.937 | E160: 0.985088582 | F160: 0.9233333333 | G160: 0.9742986 | H160: 0.9266666667 | I160: 0.9837872396 | J160: =F160-H160 -> -0.0033333334 | K160: =G160-I160 -> -0.0094886396
A161: 159 | B161: Bacillus subtilis | C161: Edwardsialla ictaluri | D161: 0.9493333333 | E161: 0.9910370991 | F161: 0.907 | G161: 0.9686788641 | H161: 0.9586666667 | I161: 0.9932941078 | J161: =F161-H161 -> -0.0516666667 | K161: =G161-I161 -> -0.0246152437
A162: 160 | B162: Bacillus subtilis | C162: Klebsiella oxytoca | D162: 0.969 | E162: 0.9950129289 | F162: 0.9593333333 | G162: 0.9929928917 | H162: 0.965 | I162: 0.9951100739 | J162: =F162-H162 -> -0.0056666667 | K162: =G162-I162 -> -0.0021171822
A163: 161 | B163: Bacillus subtilis | C163: Janthinobacterium sp. strain B3 | D163: 0.8896666667 | E163: 0.9549689759 | F163: 0.964 | G163: 0.9938022849 | H163: 0.8916666667 | I163: 0.9577588369 | J163: =F163-H163 -> 0.0723333333 | K163: =G163-I163 -> 0.036043448
A164: 162 | B164: Agrobacter rhizogenes | C164: Micrococcus luteus | D164: 0.976 | E164: 0.9934550528 | F164: 0.6153333333 | G164: 0.6652511364 | H164: 0.978 | I164: 0.9932527601 | J164: =F164-H164 -> -0.3626666667 | K164: =G164-I164 -> -0.3280016237
A165: 163 | B165: Agrobacter rhizogenes | C165: Citrobacter freundii | D165: 0.952 | E165: 0.9875796722 | F165: 0.9033333333 | G165: 0.9631564954 | H165: 0.948 | I165: 0.9840513317 | J165: =F165-H165 -> -0.0446666667 | K165: =G165-I165 -> -0.0208948363
A166: 164 | B166: Agrobacter rhizogenes | C166: Enterobacter aerogenes | D166: 0.943 | E166: 0.9861320567 | F166: 0.912 | G166: 0.9703283277 | H166: 0.932 | I166: 0.9798927715 | J166: =F166-H166 -> -0.02 | K166: =G166-I166 -> -0.0095644438
A167: 165 | B167: Agrobacter rhizogenes | C167: Escherichia coli | D167: 0.9096666667 | E167: 0.9637186913 | F167: 0.9273333333 | G167: 0.9822258067 | H167: 0.9086666667 | I167: 0.9590332809 | J167: =F167-H167 -> 0.0186666666 | K167: =G167-I167 -> 0.0231925258
A168: 166 | B168: Agrobacter rhizogenes | C168: Edwardsialla ictaluri | D168: 0.9576666667 | E168: 0.988030496 | F168: 0.9086666667 | G168: 0.9768134763 | H168: 0.9593333333 | I168: 0.988937701 | J168: =F168-H168 -> -0.0506666666 | K168: =G168-I168 -> -0.0121242247
A169: 167 | B169: Agrobacter rhizogenes | C169: Klebsiella oxytoca | D169: 0.9603333333 | E169: 0.992874406 | F169: 0.962 | G169: 0.9928366151 | H169: 0.9606666667 | I169: 0.989309386 | J169: =F169-H169 -> 0.0013333333 | K169: =G169-I169 -> 0.0035272291
A170: 168 | B170: Agrobacter rhizogenes | C170: Janthinobacterium sp. strain B3 | D170: 0.8653333333 | E170: 0.9328850586 | F170: 0.961 | G170: 0.9928990813 | H170: 0.8753333333 | I170: 0.9452638164 | J170: =F170-H170 -> 0.0856666667 | K170: =G170-I170 -> 0.0476352649
A171: 169 | B171: Micrococcus luteus | C171: Citrobacter freundii | D171: 0.9693333333 | E171: 0.9951532 | F171: 0.9213333333 | G171: 0.9728834403 | H171: 0.9683333333 | I171: 0.9952554579 | J171: =F171-H171 -> -0.047 | K171: =G171-I171 -> -0.0223720176
A172: 170 | B172: Micrococcus luteus | C172: Enterobacter aerogenes | D172: 0.97 | E172: 0.9952167778 | F172: 0.9236666667 | G172: 0.9757355452 | H172: 0.9716666667 | I172: 0.9964776615 | J172: =F172-H172 -> -0.048 | K172: =G172-I172 -> -0.0207421163
A173: 171 | B173: Micrococcus luteus | C173: Escherichia coli | D173: 0.978 | E173: 0.9964303117 | F173: 0.9276666667 | G173: 0.9825901559 | H173: 0.98 | I173: 0.997912606 | J173: =F173-H173 -> -0.0523333333 | K173: =G173-I173 -> -0.0153224501
A174: 172 | B174: Micrococcus luteus | C174: Edwardsialla ictaluri | D174: 0.975 | E174: 0.9969100344 | F174: 0.9153333333 | G174: 0.9770070994 | H174: 0.9793333333 | I174: 0.9982720646 | J174: =F174-H174 -> -0.064 | K174: =G174-I174 -> -0.0212649652
A175: 173 | B175: Micrococcus luteus | C175: Klebsiella oxytoca | D175: 0.9806666667 | E175: 0.9972565996 | F175: 0.9673333333 | G175: 0.9937173664 | H175: 0.9796666667 | I175: 0.9977792262 | J175: =F175-H175 -> -0.0123333334 | K175: =G175-I175 -> -0.0040618598
A176: 174 | B176: Micrococcus luteus | C176: Janthinobacterium sp. strain B3 | D176: 0.979 | E176: 0.996402302 | F176: 0.9663333333 | G176: 0.9932576507 | H176: 0.9743333333 | I176: 0.997485346 | J176: =F176-H176 -> -0.008 | K176: =G176-I176 -> -0.0042276953
A177: 175 | B177: Citrobacter freundii | C177: Enterobacter aerogenes | D177: 0.7253333333 | E177: 0.7995694944 | F177: 0.6063333333 | G177: 0.6381041216 | H177: 0.7233333333 | I177: 0.8037809619 | J177: =F177-H177 -> -0.117 | K177: =G177-I177 -> -0.1656768403
A178: 176 | B178: Citrobacter freundii | C178: Escherichia coli | D178: 0.7883333333 | E178: 0.8741872724 | F178: 0.8173333333 | G178: 0.9014683339 | H178: 0.784 | I178: 0.8709036838 | J178: =F178-H178 -> 0.0333333333 | K178: =G178-I178 -> 0.0305646501
A179: 177 | B179: Citrobacter freundii | C179: Edwardsialla ictaluri | D179: 0.567 | E179: 0.6072255844 | F179: 0.821 | G179: 0.9013113903 | H179: 0.5706666667 | I179: 0.5945902928 | J179: =F179-H179 -> 0.2503333333 | K179: =G179-I179 -> 0.3067210975
A180: 178 | B180: Citrobacter freundii | C180: Klebsiella oxytoca | D180: 0.8193333333 | E180: 0.8824570428 | F180: 0.8793333333 | G180: 0.9459236018 | H180: 0.802 | I180: 0.8782971489 | J180: =F180-H180 -> 0.0773333333 | K180: =G180-I180 -> 0.0676264529
A181: 179 | B181: Citrobacter freundii | C181: Janthinobacterium sp. strain B3 | D181: 0.909 | E181: 0.9670402932 | F181: 0.8753333333 | G181: 0.9427338237 | H181: 0.908 | I181: 0.9635755303 | J181: =F181-H181 -> -0.0326666667 | K181: =G181-I181 -> -0.0208417066
A182: 180 | B182: Enterobacter aerogenes | C182: Escherichia coli | D182: 0.749 | E182: 0.8275748083 | F182: 0.812 | G182: 0.8869221542 | H182: 0.764 | I182: 0.844022984 | J182: =F182-H182 -> 0.048 | K182: =G182-I182 -> 0.0428991702
A183: 181 | B183: Enterobacter aerogenes | C183: Edwardsialla ictaluri | D183: 0.698 | E183: 0.7787111153 | F183: 0.7903333333 | G183: 0.8727229844 | H183: 0.7096666667 | I183: 0.795703703 | J183: =F183-H183 -> 0.0806666666 | K183: =G183-I183 -> 0.0770192814
A184: 182 | B184: Enterobacter aerogenes | C184: Klebsiella oxytoca | D184: 0.7203333333 | E184: 0.7925574956 | F184: 0.8826666667 | G184: 0.9482130662 | H184: 0.716 | I184: 0.7911930201 | J184: =F184-H184 -> 0.1666666667 | K184: =G184-I184 -> 0.1570200461
A185: 183 | B185: Enterobacter aerogenes | C185: Janthinobacterium sp. strain B3 | D185: 0.891 | E185: 0.9530818739 | F185: 0.8693333333 | G185: 0.9411321545 | H185: 0.8843333333 | I185: 0.9514112918 | J185: =F185-H185 -> -0.015 | K185: =G185-I185 -> -0.0102791373
A186: 184 | B186: Escherichia coli | C186: Edwardsialla ictaluri | D186: 0.7726666667 | E186: 0.8605456301 | F186: 0.5616666667 | G186: 0.5891775179 | H186: 0.7653333333 | I186: 0.8419687127 | J186: =F186-H186 -> -0.2036666666 | K186: =G186-I186 -> -0.2527911948
A187: 185 | B187: Escherichia coli | C187: Klebsiella oxytoca | D187: 0.7216666667 | E187: 0.7906417169 | F187: 0.9313333333 | G187: 0.9786134369 | H187: 0.7286666667 | I187: 0.8088320553 | J187: =F187-H187 -> 0.2026666666 | K187: =G187-I187 -> 0.1697813816
A188: 186 | B188: Escherichia coli | C188: Janthinobacterium sp. strain B3 | D188: 0.7896666667 | E188: 0.8654715688 | F188: 0.932 | G188: 0.9793023436 | H188: 0.785 | I188: 0.8632821392 | J188: =F188-H188 -> 0.147 | K188: =G188-I188 -> 0.1160202044
A189: 187 | B189: Edwardsialla ictaluri | C189: Klebsiella oxytoca | D189: 0.7983333333 | E189: 0.8558926755 | F189: 0.9343333333 | G189: 0.9800486036 | H189: 0.7753333333 | I189: 0.8476524709 | J189: =F189-H189 -> 0.159 | K189: =G189-I189 -> 0.1323961327
A190: 188 | B190: Edwardsialla ictaluri | C190: Janthinobacterium sp. strain B3 | D190: 0.921 | E190: 0.9651031737 | F190: 0.9356666667 | G190: 0.978993347 | H190: 0.9073333333 | I190: 0.9604702261 | J190: =F190-H190 -> 0.0283333334 | K190: =G190-I190 -> 0.0185231209
A191: 189 | B191: Klebsiella oxytoca | C191: Janthinobacterium sp. strain B3 | D191: 0.895 | E191: 0.9477166711 | F191: 0.544 | G191: 0.5656268673 | H191: 0.8976666667 | I191: 0.9534095436 | J191: =F191-H191 -> -0.3536666667 | K191: =G191-I191 -> -0.3877826763
A192: Mean | D192: =AVERAGE(D2:D191) -> 0.9008807018 | E192: =AVERAGE(E2:E191) -> 0.9478853485 | F192: =AVERAGE(F2:F191) -> 0.8838666667 | G192: =AVERAGE(G2:G191) -> 0.935220738 | H192: =AVERAGE(H2:H191) -> 0.9047754386 | I192: =AVERAGE(I2:I191) -> 0.9519323248 | J192: =AVERAGE(J2:J191) -> -0.02090877193 | K192: =AVERAGE(K2:K191) -> -0.0167115868
A193: stdev | D193: =STDEV(D2:D191) -> 0.08350799918 | E193: =STDEV(E2:E191) -> 0.0688639501 | F193: =STDEV(F2:F191) -> 0.09462278711 | G193: =STDEV(G2:G191) -> 0.08777676678 | H193: =STDEV(H2:H191) -> 0.0818617142 | I193: =STDEV(I2:I191) -> 0.06721927292 | J193: =STDEV(J2:J191) -> 0.1126017726 | K193: =STDEV(K2:K191) -> 0.1017686789
